Cogmind - Beta 16.1 @@@ ROGUE MODE // 2026.03.03 @ 13:41:37 Player: Endlessblaze Result: Destroyed by L-41 Fighter with Axe Performance ------------- Evolutions (3) 1500 Regions Visited (5) 1000 Robots Destroyed (83) 415 Value Destroyed (2419) 2419 Prototype IDs (3) 60 Alien Tech Used (0) 0 Bonus (580) 580 TOTAL SCORE: 5974 Bonus ------- High Alert Combat Kills 35 Follower Combat Kills 45 Entered DSFs 500 Cogmind --------- Core Integrity 0/700 Matter 58/300 Energy 99/100 System Corruption 1% Temperature Cool (18) Movement Core (1350) Ox26 Location -7/DSF Parts ------- > --- POWER (2) -------- (None) > --- PROPULSION (4) --- (None) > --- UTILITY (4) ------ Huge Storage Unit > --- WEAPON (3) ------- (None) > --- INVENTORY (25) --- Heat Sink Improved Cooling System Large Storage Unit Improved Sensor Array Improved Signal Interpreter Target Analyzer Target Analyzer Target Analyzer Particle Charger Light Armor Plating Improved Light Armor Plating Improved Medium Armor Plating Improved Heavy Armor Plating Hardlight Generator High-powered Tractor Beam Field Recycling Unit (0) Field Recycling Unit (0) Gauss Cannon Rocket Launcher Great Maul Mining Claw Scythe Scythe Spear Peak State ------------ > --- POWER ------------ Micro Nuclear Core Micro Nuclear Core > --- PROPULSION ------- Armored Wheel Armored Wheel Armored Wheel Gravmag System > --- UTILITY ---------- Improved Cooling System Huge Storage Unit Visual Processing Unit Hacking Suite > --- WEAPON ----------- Arc Projector Plasma Cannon EMP Blaster > --- INVENTORY -------- Heat Sink Improved Cooling System Large Storage Unit Improved Sensor Array Improved Signal Interpreter Target Analyzer Target Analyzer Target Analyzer Particle Charger Light Armor Plating Improved Light Armor Plating Hardlight Generator High-powered Tractor Beam Field Recycling Unit Field Recycling Unit Arc Projector High-powered Shotgun Gauss Cannon Improved Grenade Launcher Improved Grenade Launcher Great Maul Mining Claw Scythe Scythe Spear [Rating: 44] Favorites ----------- Power Light Ion Engine Engine Light Ion Engine Power Core Micro Nuclear Core Propulsion Aluminum Leg Leg Aluminum Leg Wheel Armored Wheel Hover Unit Gravmag System Utility Visual Processing Unit Device Disposable Heat Sink Storage Huge Storage Unit Processor Visual Processing Unit Hackware Hacking Suite Weapon Advanced Beam Cannon Energy Gun EM Pulse Gun Energy Cannon Advanced Beam Cannon Ballistic Gun Assault Rifle Launcher Improved Grenade Launcher Impact Weapon Great Maul Build | -11 -10 -9 -8 -7 -7 ------- Run | Yrd Mat Mat Mat Fac DSF Slots Evolved 6 | . . 2 2 2 . Power 1 | . . . . 1 . Propulsion 2 | . . . 2 . . Utility 2 | . . 2 . . . Weapon 1 | . . . . 1 . Parts Attached 51 | 5 . 17 13 12 4 Power 6 | 1 . 1 2 1 1 Engine 4 | 1 . 1 2 . . Core 2 | . . . . 1 1 Reactor . | . . . . . . Propulsion 16 | 2 . 4 6 4 . Treads . | . . . . . . Leg 12 | 2 . 4 6 . . Wheel 3 | . . . . 3 . Hover 1 | . . . . 1 . Flight . | . . . . . . Utility 10 | . . 6 3 1 . Device 7 | . . 4 3 . . Storage 1 | . . 1 . . . Processor 1 | . . 1 . . . Hackware 1 | . . . . 1 . Protection . | . . . . . . Artifact . | . . . . . . Weapon 19 | 2 . 6 2 6 3 Energy Gun 4 | 1 . . . 2 1 Energy Cannon 6 | . . 4 1 1 . Ballistic Gun 3 | 1 . . . 1 1 Ballistic Cannon . | . . . . . . Launcher 5 | . . 2 1 1 1 Special Weapon . | . . . . . . Impact Weapon 1 | . . . . 1 . Slashing Weapon . | . . . . . . Piercing Weapon . | . . . . . . Special Melee Weapon . | . . . . . . Unidentified Prototypes 3 | . . 1 . 2 . Parts Lost 28 | . . 3 11 . 14 Power 4 | . . 1 1 . 2 Propulsion 11 | . . 2 5 . 4 Utility 4 | . . . 2 . 2 Weapon 9 | . . . 3 . 6 Highest Loss Streak 10 | . . 1 3 . 10 To Critical Strikes . | . . . . . . Average Backups 14 | . . 5 21 21 24 Power . | . . . . . . Propulsion 1 | . . . 2 . . Utility 7 | . . 1 11 13 16 Weapon 5 | . . 3 7 7 8 Tool/Special . | . . . . . . Unused Backups 22 | . . . . . 22 Power . | . . . . . . Propulsion . | . . . . . . Utility 16 | . . . . . 16 Weapon 6 | . . . . . 6 Tool/Special . | . . . . . . Average Slot Usage (%) 85 | . 71 88 83 92 86 Engine 8 | . 14 10 7 8 1 Core 1 | . . . . 5 12 Leg 21 | . 28 21 25 8 . Wheel 2 | . . . . 13 21 Device 15 | . . 22 14 9 6 Storage 5 | . . 2 9 7 7 Processor 8 | . . 9 9 7 7 Energy Gun 1 | . 14 . . 1 1 Energy Cannon 13 | . . 17 13 13 6 Ballistic Gun 1 | . 14 . . . 2 Launcher 3 | . . 2 4 7 6 Peak Build Rating 44 | 5 5 18 27 42 44 Average Rating 19 | 3 5 14 20 34 37 On Entrance 15 | . 5 5 13 27 42 Avg Prop Armor Cover (%) 5 | . . 8 27 3 3 Naked Turns . | . . . . . . Heaviest Build 110 | 9 9 94 100 110 110 Greatest Support 40 | 20 20 20 40 36 36 Greatest Overweight (x) 35 | . . 9 29 35 30 Average Overweight (x) 1 | . . . 3 2 3 Largest Inventory Capacity 25 | 5 5 25 25 25 25 Average Capacity 17 | 5 5 9 25 25 25 Most Carried 25 | . 1 13 25 25 25 Average Carried 14 | . . 5 21 21 24 Final Capacity 25 | 5 5 25 25 25 25 Final Carried 25 | . 1 13 23 25 25 Class Distribution -------------------- 47% | Mutant 40% | Scavenger-Mutant 10% | Skirmisher Dominant Class ---------------- Mutant | -10/Materials Mutant | -9/Materials Scavenger-Mutant | -8/Materials Skirmisher | -7/Factory Mutant | -7/DSF Resources | -11 -10 -9 -8 -7 -7 ----------- Run | Yrd Mat Mat Mat Fac DSF Matter Collected 1000 | 250 39 279 360 . 72 Remotely . | . . . . . . Salvage Created 2522 | . 117 937 987 . 481 Parts 142 | . 7 61 51 . 23 Haulers Intercepted . | . . . . . . Recyclers Shooed 4 | . 1 . 3 . . Parts Field Recycled . | . . . . . . Retrieved Matter . | . . . . . . Parts Self-Destructed . | . . . . . . Prevented . | . . . . . . Parts Restored . | . . . . . . Kills | -11 -10 -9 -8 -7 -7 ------- Run | Yrd Mat Mat Mat Fac DSF Combat Hostiles Destroyed 60 | . 1 28 23 . 8 Guns 6 | . 1 4 . . 1 Cannons 27 | . . 16 10 . 1 AOE 25 | . . 7 12 . 6 Classes Destroyed 11 | . 4 5 1 . 1 Worker 5 | . 1 2 2 . . Builder 5 | . . 2 3 . . Tunneler 2 | . . 2 . . . Recycler 2 | . . . 2 . . Operator 3 | . 1 1 1 . . Watcher 6 | . 1 4 1 . . Swarmer 16 | . . 10 3 . 3 Grunt 33 | . 1 15 14 . 3 Duelist 2 | . . 1 1 . . Sentry 7 | . . 2 5 . . Specialist 2 | . . . . . 2 Best Kill Streak 7 | . 2 7 7 . 4 Combat Bots Only 6 | . 1 6 5 . 4 Max Kills in Single Turn 4 | . 1 3 2 . 4 Gunslinging . | . . . . . . Exploded 4 | . . 3 2 . 4 Melee . | . . . . . . Uniques/NPCs Destroyed . | . . . . . . Combat | -11 -10 -9 -8 -7 -7 -------- Run | Yrd Mat Mat Mat Fac DSF Hostile Shots Fired 372 | . 19 111 121 . 121 Missed 116 | . 8 33 43 . 32 Hits 256 | . 11 78 78 . 89 Melee 5 | . . . 1 . 4 Projectile 251 | . 11 78 77 . 85 Critical Strikes 11 | . . . 3 . 8 Damage Taken 4178 | . 120 820 1291 . 1947 Core 1113 | . 31 199 153 . 730 Absorbed by Shields . | . . . . . . Regen/Repaired (Parts) 118 | . . . 74 44 . Core Remaining (%) 77 | 100 87 50 72 . . Volleys Fired 168 | . 17 61 78 . 12 Largest 3 | . 2 2 2 . 3 Hottest 168 | . 60 136 136 . 168 Shots Fired 320 | . 34 117 144 . 25 Gun 59 | . 34 18 . . 7 Cannon 221 | . . 88 123 . 10 Launcher 40 | . . 11 21 . 8 Special . | . . . . . . Kinetic 30 | . 17 9 . . 4 Thermal 221 | . . 88 123 . 10 Explosive 35 | . . 11 21 . 3 Electromagnetic 34 | . 17 9 . . 8 Robot Hit Streak 14 | . 6 14 11 . 6 Robot Miss Streak 5 | . 5 4 3 . 2 Penetration Max . | . . . . . . Secondary Targets 2 | . . 2 . . . Max Gunslinging Chain 1 | . . 1 . . . Shots Hit Robots 173 | . 20 61 74 . 18 Core Hits 129 | . 7 45 57 . 20 Critical Kills 2 | . . 1 1 . . Critical Parts Destroyed . | . . . . . . Critical Strikes 2 | . . 1 1 . . Meltdown 2 | . . 1 1 . . Melee Attacks 1 | . . . . 1 . Impact 1 | . . . . 1 . Slashing . | . . . . . . Piercing . | . . . . . . Sneak Attacks . | . . . . . . Combat Hostiles . | . . . . . . Follow-up Attacks . | . . . . . . Damage Inflicted 6588 | . 338 1910 2920 . 1420 Guns 501 | . 276 112 . . 113 Cannons 2687 | . . 1148 1310 . 229 Explosions 3390 | . 62 650 1609 . 1069 Melee . | . . . . . . Ramming 10 | . . . 1 . 9 Kinetic 286 | . 137 62 . . 87 Thermal 2937 | . 62 1148 1310 . 417 Explosive 2854 | . . 650 1609 . 595 Electromagnetic 501 | . 139 50 . . 312 Impact . | . . . . . . Slashing . | . . . . . . Piercing . | . . . . . . Highest Corruption 5 | . . . . 5 1 Average Corruption 2 | . . . . 2 1 Corruption Purged 5 | . . . . 5 . Corruption Blocked . | . . . . . . Effects 2 | . . . . 2 . Message Errors 1 | . . . . 1 . Matter Fused 1 | . . . . 1 . Overload Shots . | . . . . . . Overflow Damage 203 | . 7 29 109 . 58 Projectiles 54 | . . 26 28 . . Explosions 149 | . 7 3 81 . 58 Melee . | . . . . . . Knockbacks . | . . . . . . Impact . | . . . . . . Kinetic . | . . . . . . Secondary . | . . . . . . Self-Inflicted Damage 317 | . . 104 134 . 79 Shots 13 | . . 5 5 . 3 Rammed 1 | . . . . . 1 Targets Rammed 2 | . . . 1 . 1 Kicked 1 | . . . 1 . . Crushed . | . . . . . . Highest Temperature 276 | . 30 276 235 . . Average Temperature 80 | . 17 94 72 . . Received Heat Transfer 1131 | . 66 147 540 . 378 Siege Activations . | . . . . . . Martial Activations . | . . . . . . Shielding Activations . | . . . . . . Robots Disrupted 1 | . . . . . 1 Combat Hostiles 1 | . . . . . 1 Robots Corrupted . | . . . . . . Combat Hostiles . | . . . . . . Parts Fried 1 | . 1 . . . . Impact Corruptions . | . . . . . . Robots Melted 3 | . . 2 1 . . Combat Hostiles 2 | . . 1 1 . . Parts Melted 13 | . . 10 3 . . Heat Transferred 5190 | . 100 2072 2368 . 650 Parts Sabotaged . | . . . . . . Parts Stolen . | . . . . . . Parts Stripped . | . . . . . . Power Chain Reactions 2 | . 1 . . . 1 Alert | -11 -10 -9 -8 -7 -7 ------- Run | Yrd Mat Mat Mat Fac DSF Maximum Alert Level 2 | . . 2 1 . 1 Low Security (%) 73 | 100 100 76 56 100 98 Level 1 22 | . . 10 43 . 1 Level 2 4 | . . 13 . . . Level 3 . | . . . . . . Level 4 . | . . . . . . Level 5 . | . . . . . . High Security . | . . . . . . Max Security . | . . . . . . Peak Influence 476 | . 43 476 373 127 216 Initial 189 | . . . 189 127 2 Average 146 | . 6 146 208 37 65 Influence Increases 2116 | . 57 950 803 25 281 Destroy 0b10 Robot/C 1220 | . 20 560 460 . 180 Destroy 0b10 Robot/NC 135 | . 15 55 45 . 20 Destroy Leader 252 | . 12 108 102 . 30 Allied During Kill 1 | . . . . . 1 Trap Triggered on 0b10 40 | . . 40 . . . Successful Hack 47 | . 4 19 14 10 . Disable Machine 180 | . . 90 60 15 15 Destroy Structure 211 | . 6 78 107 . 20 Partial Spotted 15 | . . . 15 . . Lose Combat Pursuer 15 | . . . . . 15 Influence Decreases 1980 | . 57 502 970 302 149 Entered New Map 415 | . . . 259 154 2 Time Decay 1278 | . 57 472 601 148 . Lost Part 267 | . . 30 110 . 127 Lost Ally 20 | . . . . . 20 Squads Dispatched 12 | . 3 4 2 1 2 Investigation 5 | . 1 3 . 1 . Extermination . | . . . . . . Reinforcement 7 | . 2 1 2 . 2 Assault . | . . . . . . Garrison . | . . . . . . Intercept . | . . . . . . Searches Triggered . | . . . . . . Construction Impeded 2 | . . . 2 . . Haulers Reinforced . | . . . . . . Active Scanning Responses . | . . . . . . Cargo Convoy Interrupts . | . . . . . . Stealth | -11 -10 -9 -8 -7 -7 --------- Run | Yrd Mat Mat Mat Fac DSF Distress Signals 5 | . . 2 3 . . Communications Jammed . | . . . . . . Distress Signals . | . . . . . . Times Spotted 106 | . 8 40 41 . 17 Peak Tracking Total 10 | . 4 5 6 . 10 Tactical Retreats 3 | . . 1 1 . 1 ECM-based Alert Blocks 4 | . . 3 1 . . Traps | -11 -10 -9 -8 -7 -7 ------- Run | Yrd Mat Mat Mat Fac DSF Traps Triggered 1 | . 1 . . . . Indirectly . | . . . . . . Trap Hack Attempts . | . . . . . . Triggered . | . . . . . . Disarmed . | . . . . . . Reprogrammed 6 | . . 6 . . . Reused 4 | . . 4 . . . Traps Extracted . | . . . . . . Installed . | . . . . . . Triggered 4 | . . 4 . . . Machines | -11 -10 -9 -8 -7 -7 ---------- Run | Yrd Mat Mat Mat Fac DSF Machines Disabled 12 | . . 6 4 1 1 Max in Single Turn 2 | . . 2 1 1 1 Garrison Access 1 | . . . . 1 . Machines Repaired . | . . . . . . Machines Dismantled . | . . . . . . Machines Sabotaged . | . . . . . . Overloaded Fab Kills . | . . . . . . Hacking | -11 -10 -9 -8 -7 -7 --------- Run | Yrd Mat Mat Mat Fac DSF Machines Accessed 19 | . 2 7 5 5 . Terminals 12 | . 2 5 3 2 . Fabricators . | . . . . . . Repair Stations 2 | . . . 1 1 . Recycling Units 2 | . . 1 . 1 . Scanalyzers 2 | . . 1 1 . . Garrison Access 1 | . . . . 1 . Total Hacks 57 | . 8 16 21 12 . Successful 36 | . 3 9 16 8 . Failed 21 | . 5 7 5 4 . Catastrophic 5 | . 1 3 . 1 . Database Lockouts . | . . . . . . Manual 31 | . 8 11 8 4 . Terminals 30 | . 8 11 8 3 . Fabricators . | . . . . . . Repair Stations 11 | . . . 8 3 . Recycling Units 4 | . . 2 . 2 . Scanalyzers 8 | . . 3 5 . . Garrison Access 4 | . . . . 4 . Terminal Hacks 3 | . . 1 1 1 . Open DSF 1 | . . . . 1 . Terminal Index 1 | . . . 1 . . Reprogram Traps 1 | . . 1 . . . Fabricator Hacks . | . . . . . . Repair Station Hacks 6 | . . . 4 2 . Scan Component 4 | . . . 3 1 . Repair 2 | . . . 1 1 . Recycling Unit Hacks 2 | . . 1 . 1 . Retrieve Components 2 | . . 1 . 1 . Scanalyzer 8 | . . 3 5 . . Insert Component 2 | . . 1 1 . . Analyze 2 | . . 1 1 . . Retrieve Study 4 | . . 1 3 . . Garrison Access Hacks 2 | . . . . 2 . Seal Access 1 | . . . . 1 . Coupler Status 1 | . . . . 1 . Unauthorized Hacks 14 | . 3 4 6 1 . Terminals 13 | . 3 4 6 . . Track 5 | . 1 1 3 . . Botnet 7 | . 2 2 3 . . Sabotage 1 | . . 1 . . . Fabricators . | . . . . . . Repair Stations 1 | . . . . 1 . Patch 1 | . . . . 1 . Recycling Units . | . . . . . . Scanalyzers . | . . . . . . Garrison Access . | . . . . . . Data Cores Recovered 1 | . . . 1 . . Used . | . . . . . . Hacking Detections 15 | . 2 6 4 3 . Full Trace Events 3 | . . 2 1 . . Feedback Events . | . . . . . . Feedback Blocked . | . . . . . . Robot Schematics Acquired . | . . . . . . Robots Built . | . . . . . . Authchips . | . . . . . . Time . | . . . . . . Total Robot Build Rating . | . . . . . . Part Schematics Acquired 2 | . . 1 1 . . Parts Built . | . . . . . . Authchips . | . . . . . . Time . | . . . . . . Total Part Build Rating . | . . . . . . Part Studies Acquired 4 | . . 1 3 . . Parts Repaired 2 | . . . 1 1 . Time 58 | . . . 36 22 . Parts Recycled . | . . . . . . Recycled Matter . | . . . . . . Retrieved Matter . | . . . . . . Retrieved Components 10 | . . 9 . 1 . Parts Scanalyzed 2 | . . 1 1 . . Part Schematics Acquired 2 | . . 1 1 . . Parts Damaged . | . . . . . . Bothacking | -11 -10 -9 -8 -7 -7 ------------ Run | Yrd Mat Mat Mat Fac DSF Used RIF Installer . | . . . . . . Robots Hacked . | . . . . . . Non-combat . | . . . . . . Combat . | . . . . . . Robot Hacks Applied . | . . . . . . Relay Couplers Released . | . . . . . . Fabnet Peak Effective % . | . . . . . . Robots Rewired 1 | . . . . . 1 Allies Hacked . | . . . . . . Hacks Repelled . | . . . . . . Allies | -11 -10 -9 -8 -7 -7 -------- Run | Yrd Mat Mat Mat Fac DSF Total Allies 1 | . . . . . 1 Largest Group 1 | . . . . . 1 Highest-Rated Group 43 | . . . . . 43 Highest-Rated Ally 43 | . . . . . 43 Total Orders . | . . . . . . Ally Attacks 8 | . . . . . 8 Total Damage 262 | . . . . . 262 Kills 1 | . . . . . 1 Allies Corrupted . | . . . . . . Allies Melted . | . . . . . . Intel | -11 -10 -9 -8 -7 -7 ------- Run | Yrd Mat Mat Mat Fac DSF Active Infowar (turns) 3480 | . . 1311 1480 465 224 Optics 3224 | . . 1311 1224 465 224 ECM 1234 | . . 585 649 . . Robot Analysis Total . | . . . . . . Derelict Logs Recovered . | . . . . . . Drone Launches . | . . . . . . Drone Recoveries . | . . . . . . Exploration | -11 -10 -9 -8 -7 -7 ------------- Run | Yrd Mat Mat Mat Fac DSF Turns Passed 4566 | 67 303 1576 1929 465 226 Spaces Moved 1640 | 59 210 619 419 226 107 Core 26 | 15 . . 7 2 2 Treads . | . . . . . . Legs 1333 | 44 210 619 412 48 . Wheels 281 | . . . . 176 105 Hover . | . . . . . . Flight . | . . . . . . Fastest Speed 50 | 50 120 120 260 120 120 Average Speed 212 | 102 120 163 380 180 152 Slowest Speed 1800 | 120 120 750 1500 1800 1550 Overloaded Moves . | . . . . . . Propulsion Burnouts . | . . . . . . Robots Hopped . | . . . . . . Potential Cave-ins . | . . . . . . Cave-ins Triggered . | . . . . . . Exploration Rate (%) 35 | 3 39 48 35 3 82 Regions Visited 5 Branch Regions . Pre-discovered Areas . | . . . . . . Known Exits Taken 1 | . . . . 1 . Unknown Exits Taken 4 | 1 1 1 1 . . Scrap Searched . | . . . . . . Spaces Dug . | . . . . . . Terrain Destroyed 237 | . 6 80 130 . 21 Melee . | . . . . . . Projectile 2 | . . 1 1 . . AOE 235 | . 6 79 129 . 21 Terrain Rammed . | . . . . . . Walls Destroyed . | . . . . . . Machines Disabled . | . . . . . . Actions | -11 -10 -9 -8 -7 -7 --------- Run | Yrd Mat Mat Mat Fac DSF Total 2406 | 63 227 1067 609 279 161 Wait 462 | . . 342 73 22 25 Move 1635 | 58 209 618 418 225 107 Hop . | . . . . . . Pick Up 47 | . 1 16 19 8 3 Fast Attach 25 | 5 . 8 5 6 1 Attach 22 | . . 4 10 5 3 Detach 1 | . . 1 . . . Swap 19 | . . 9 5 4 1 Drop 19 | . . 8 . 8 3 Fire 168 | . 17 61 78 . 12 Melee 1 | . . . . 1 . Ram 1 | . . . . . 1 Kick 1 | . . . 1 . . Crush . | . . . . . . Escape Stasis . | . . . . . . Rewire 5 | . . . . . 5 Trap . | . . . . . . Miscellaneous . | . . . . . . Route ------- -11/Scrapyard -10/Materials -9/Materials (discovered 2 exits: *Mat / [*Min]) -8/Materials -7/Factory -7/DSF (discovered 1 exit: [*Fac]) History --------- Turn | Location | Event 4 | -11/Scrapyard | Discovered new exit (range 16) 68 | -11/Scrapyard | Entered Materials 316 | -10/Materials | Build established: Mutant 345 | -10/Materials | Discovered new exit (range 11) 371 | -10/Materials | Entered another Materials area 371 | -9/Materials | Evolved 2 slots: Utility x2 672 | -9/Materials | Discovered new exit (range 13) 1561 | -9/Materials | Discovered new exit (range 18) 1701 | -9/Materials | Build established: Scavenger-Mutant 1947 | -9/Materials | Entered another Materials area 1947 | -8/Materials | Evolved 2 slots: Propulsion x2 2251 | -8/Materials | Lost 3 parts (1p1n1w) 2813 | -8/Materials | Repaired Broken Aluminum Leg 3311 | -8/Materials | Lost 3 parts (2n1u) 3574 | -8/Materials | Build established: Mutant 3821 | -8/Materials | Discovered new exit (range 5) 3876 | -8/Materials | Entered Factory 3876 | -7/Factory | Evolved 2 slots: Power x1, Weapon x1 4247 | -7/Factory | Build established: Skirmisher 4320 | -7/Factory | Repaired Spear 4340 | -7/Factory | Identified exit to DSF 4341 | -7/Factory | Entered DSF 4361 | -7/DSF | Additional patrols routed to DSF 4426 | -7/DSF | Lost 3 parts (1n2w) 4531 | -7/DSF | Discovered new exit (range 17) 4555 | -7/DSF | Core integrity fell below 50% 4560 | -7/DSF | Core integrity fell below 20% 4567 | -7/DSF | Destroyed by L-41 Fighter with Axe Last Messages --------------- 04546_ Critical hit (Blast). 04546_ Acquired 12 matter. 04548_ Slug penetrates Wall. 04548_ Arm. Wheel destroyed. 04551_ Penetrated by Slug. 04551_ Plasma Cannon destroyed. 04552_ Hpw. Shotgun destroyed. 04552_ Critical hit (Burn: +37). 04554_ Penetrated by Slug. 04556_ Mic. Nuclear Core destroyed. 04556_ Hacking Suite destroyed. 04556_ Critical hit (Blast). 04556_ Knocked back. 04557_ Slug penetrates Wall. 04559_ Imp. Cooling System destroyed. 04560_ L-41 Fighter suffers critical hit (Burn). 04564_ Slug penetrates G-47 Trooper. 04564_ G-47 Trooper destroyed. 04565_ Visual Processing Unit severed. 04567_ Penetrated by Slug. Map ----- +----------------------------------------------------+ | | | | | | | | | | | | | | | | | | | | | | | | | | | | | | | | | | | | | ???????????????????????????????????????????????? | | ???????????????????????????????????????????????? | | ???????????????????????????????????????????????? | | ???????????????????????????????????????????????? | | ?????????????????????????##????????????????????? | | ???????????????????????## ####?????????????????? | | ????????????????????#### % #?????????????????? | | ????????????????????#==@[[= %####??????????????? | | ????????????????????#==[l[%s%!!!#!!##""""??????? | | ????????????????????# =*=x % <""?????? | | ????????????????????# *%[%g % ""?????? | | ????????????????????### ##!!!#!!## ""?????? | | ????????????????????### ;##?!!#??#???????????? | | ????????????????????# ] #??##??????????????? | | ????????????????????#]]] #??????????????????? | | ????????????????????#]] #??????????????????? | | ????????????????????##; ###??????????????????? | | ????????????????????#// H!!#??????????????????? | | ????????????????????#// !!#??????????????????? | | ????????????????????#// !!#??????????????????? | | ??????################# ;##???#??????????????? | | ??????#== ## #!!!### ###?**#???#??????????? | | ??????#== ## #!! =%! !% #***# ## !!?????? | | ??????#[^[ %%! **?????? | | ??????#[[ [=%= = **?????? | | ??????#[^ == =%! *^*?????? | | ??????# [ ## # !!% ! ##!!!#***## ^ ?????? | | ??????# ## #!!!# %!] #!!!#?**#??????????? | | ??????### ########## ##?###???#??????????? | | ???????#* **#??????#! !#??????????????????? | | ???????#* **#??????#!! !!#??????????????????? | | ???????#* **#??????#!! !!#??????????????????? | +----------------------------------------------------+ Best States ------------- Heat Dissipation 61 Coolant Potential 100 Energy Generation 25 Energy Capacity 315 Matter Stores 300 Matter Capacity 300 Sight Range 18 Terrain Scan Density 10 ECM Strength 1 Evasion (%) 55 Offensive Hacking 10 Item Schematics ----------------- Disposable Heat Sink | -9/Materials | Scanalyzed Imp. Light Armor Plating | -8/Materials | Scanalyzed Robot Schematics ------------------ None Fabricated ------------ Nothing Repaired ---------- Aluminum Leg | 17% | -8/Materials | Broken Spear | 32% | -7/Factory Studied --------- Rocket Launcher | -9/Materials | Hacked Scythe | -8/Materials | Hacked Mining Claw | -8/Materials | Hacked Mni. Grenade Launcher | -8/Materials | Hacked Alien Tech Used ----------------- None Achievements -------------- Ew, Corruption For Emergencies Only Heavy Suspicion Item+ Throw Away The Key Tune-up Challenges ------------ None Game ------ Seed LaserCommInterpreter Manual? 0 Play Time 00:40:32 Cumulative 38.8 hours Start 2026.03.03 @ 12:54:45 End 2026.03.03 @ 13:41:37 Sessions 1 Manual Loads 0 Difficulty Rogue Special Mode None Game No. 55 Rogue 55 Adventurer 0 Explorer 0 Win Type - Total 0 Types 0/0/0/0/0/0/0/0/0/0 Lore% 37 Gallery% 28 Achievement% 17 Wizard Run 0 Options --------- Layout 1 ASCII 0 Keyboard 0 Movement Arrows Keybinds 0 Fullscreen 1 Font 16/SmallcapsGlow Map View 55x38 Zoom Use 0% Tactical HUD 1 Map Filters NONE Filters NONE Steam 1 RUN: 05a742ff-77c0-4c11-8bc0-80af5fd4835e